[Event "Torneo Interdepartamental 2019"]
[Site "Montevideo"]
[Date "2019.08.25"]
[Round "4.3"]
[White "Michailov, Matias"]
[Black "El Ters, Antouan"]
[Result "1-0"]
[ECO "B60"]
[WhiteElo "2257"]
[BlackElo "2181"]
[Annotator "NA"]
[PlyCount "84"]
[EventDate "2019.08.23"]
[EventType "team-tourn"]
[EventCountry "URU"]
[SourceTitle "playchess.com"]
[Source "ChessBase"]
[SourceQuality "1"]
[TimeControl "5400+30"]

1. e4 {[%emt 0:04:19]} c5 {[%emt 0:03:36]} 2. Nf3 {[%emt 0:02:08]} Nc6 {[%emt 0:00:44]} 3. d4 {[%emt 0:00:53]} cxd4 {[%emt 0:00:09]} 4. Nxd4 {[%emt 0:00:06]} Nf6 {[%emt 0:00:49]} 5. Nc3 {[%emt 0:00:37]} d6 {[%emt 0:02:10]} 6. Bg5 {[%emt 0:01:37]} e5 {[%emt 0:01:46]} 7. Nf5 {[%emt 0:16:41]} Bxf5 {[%emt 0:07:43]} 8. exf5 {[%emt 0:00:07]} Be7 {[%emt 0:03:14]} 9. Bc4 {[%emt 0:15:17]} Nd4 {[%emt 0:07:49]} 10. Bxf6 {[%emt 0:06:42]} Bxf6 {[%emt 0:01:04]} 11. Qd3 {[%emt 0:01:08]} O-O {[%emt 0:03:40]} 12. O-O {[%emt 0:04:34]} Rc8 {[%emt 0:00:41]} 13. Bb3 {[%emt 0:05:05]} Re8 {[%emt 0:02:35]} 14. Rad1 {[%emt 0:04:58]} Qa5 {[%emt 0:08:06]} 15. Nd5 {[%emt 0:04:24]} Qd8 {[%emt 0:14:26]} 16. c3 {[%emt 0:03:31]} Nxb3 {[%emt 0:00:32]} 17. axb3 {[%emt 0:00:05]} e4 {[%emt 0:00:28]} 18. Qg3 {[%emt 0:02:39]} Re5 {[%emt 0:08:54]} 19. Ne3 {[%emt 0:03:35]} Bh4 {[%emt 0:04:52]} 20. Qh3 {[%emt 0:01:46]} Be7 {[%emt 0:03:24]} 21. Ng4 {[%emt 0:03:01]} Rec5 {[%emt 0:00:57]} 22. b4 {[%emt 0:01:44]} Rc4 {[%emt 0:01:57]} 23. Rd5 {[%emt 0:00:23]} f6 {[%emt 0:07:00]} 24. Ne3 {[%emt 0:00:58]} R4c6 {[%emt 0:02:14]} 25. Rfd1 {[%emt 0:01:13]} Bf8 {[%emt 0:00:27]} 26. R5d4 {[%emt 0:02:39]} Qe7 {[%emt 0:01:10]} 27. Nd5 {[%emt 0:00:39]} Qe5 {[%emt 0:00:45]} 28. Ne3 {[%emt 0:04:45]} a6 {[%emt 0:04:12]} 29. Qg4 {[%emt 0:00:31]} Re8 {[%emt 0:00:47]} 30. h4 {[%emt 0:00:56]} Kh8 {[%emt 0:00:48]} 31. h5 {[%emt 0:02:30]} b5 {[%emt 0:01:39]} 32. h6 {[%emt 0:01:56]} gxh6 {[%emt 0:00:56]} 33. Qh5 {[%emt 0:00:21]} Rcc8 {[%emt 0:04:24]} 34. Ng4 {[%emt 0:00:57]} Qe7 {[%emt 0:00:16]} 35. Rxd6 {[%emt 0:01:59]} Red8 {[%emt 0:01:46]} 36. Rxd8 {[%emt 0:01:25]} Rxd8 {[%emt 0:00:06]} 37. Re1 {[%emt 0:01:26]} Bg7 {[%emt 0:00:10]} 38. Qh2 {[%emt 0:00:40]} h5 {[%emt 0:01:04]} 39. Qxh5 {[%emt 0:00:13]} Rd2 {[%emt 0:00:46]} 40. Qh2 {[%emt 0:00:32]} Kg8 {[%emt 0:00:46]} 41. Qf4 {[%emt 0:00:17]} Qd6 {[%emt 0:00:37]} 42. Qxe4 {[%emt 0:00:46]} Bf8 1-0

[Event "Torneo Interdepartamental 2019"]
[Site "Montevideo"]
[Date "2019.08.25"]
[Round "4.4"]
[White "Carvalho, Guillermo"]
[Black "Braso, Jorge"]
[Result "1/2-1/2"]
[ECO "D02"]
[WhiteElo "2180"]
[BlackElo "2108"]
[Annotator "NA"]
[PlyCount "88"]
[EventDate "2019.08.23"]
[EventType "team-tourn"]
[EventCountry "URU"]
[SourceTitle "playchess.com"]
[Source "ChessBase"]
[SourceQuality "1"]
[TimeControl "5400+30"]

1. d4 {[%emt 0:01:52]} d5 {[%emt 0:01:20]} 2. Nf3 {[%emt 0:01:24]} Nf6 {[%emt 0:00:13]} 3. g3 {[%emt 0:00:24]} e6 {[%emt 0:04:10]} 4. Bg2 {[%emt 0:00:59]} c5 {[%emt 0:00:34]} 5. O-O {[%emt 0:01:17]} Nc6 {[%emt 0:00:13]} 6. b3 {[%emt 0:06:00]} cxd4 {[%emt 0:01:56]} 7. Nxd4 {[%emt 0:00:32]} e5 {[%emt 0:00:47]} 8. Nxc6 {[%emt 0:01:01]} bxc6 {[%emt 0:00:24]} 9. Bb2 {[%emt 0:06:13]} Qc7 {[%emt 0:01:13]} 10. c4 {[%emt 0:01:28]} d4 {[%emt 0:06:32]} 11. Na3 {[%emt 0:19:56]} Bb7 {[%emt 0:02:09]} 12. c5 {[%emt 0:11:55]} Rd8 {[%emt 0:02:44]} 13. b4 {[%emt 0:05:10]} Be7 {[%emt 0:02:42]} 14. Qa4 {[%emt 0:02:50]} O-O {[%emt 0:05:22]} 15. Nc4 {[%emt 0:00:35]} Nd5 {[%emt 0:04:49]} 16. Rac1 {[%emt 0:05:21]} Bc8 {[%emt 0:14:21]} 17. e3 {[%emt 0:11:27]} dxe3 {[%emt 0:06:14]} 18. Bxe5 {[%emt 0:01:30]} exf2+ {[%emt 0:00:04]} 19. Rxf2 {[%emt 0:00:51]} Qd7 {[%emt 0:02:39]} 20. Kh1 {[%emt 0:02:29]} Bg5 {[%emt 0:01:27]} 21. Bf4 {[%emt 0:03:25]} Bxf4 {[%emt 0:00:45]} 22. gxf4 {[%emt 0:00:07]} Qe6 {[%emt 0:07:41]} 23. Qb3 {[%emt 0:01:42]} Qh6 {[%emt 0:02:26]} 24. Nd6 {[%emt 0:05:01]} Be6 {[%emt 0:06:14]} 25. Qg3 {[%emt 0:01:19]} Nxb4 {[%emt 0:00:37]} 26. Rg1 {[%emt 0:01:18]} f5 {[%emt 0:01:10]} 27. Rb1 {[%emt 0:04:19]} Nd5 {[%emt 0:02:07]} 28. Re1 {[%emt 0:01:02]} Rb8 {[%emt 0:01:52]} 29. Qg5 {[%emt 0:00:17]} Rf6 {[%emt 0:01:57]} 30. Qxh6 {[%emt 0:01:24]} Rxh6 {[%emt 0:00:11]} 31. Nc4 {[%emt 0:01:04]} Rb5 {[%emt 0:02:36]} 32. Ne5 Rxc5 {[%emt 0:00:29]} 33. Rd2 {[%emt 0:01:31]} Bf7 {[%emt 0:01:34]} 34. Rb1 {[%emt 0:00:36]} Re6 {[%emt 0:01:01]} 35. Bxd5 {[%emt 0:00:39]} cxd5 {[%emt 0:01:31]} 36. Rb7 {[%emt 0:00:17]} Be8 {[%emt 0:01:05]} 37. Rxa7 {[%emt 0:00:10]} Kf8 {[%emt 0:01:59]} 38. Ra8 {[%emt 0:00:34]} Ke7 {[%emt 0:00:50]} 39. Kg2 {[%emt 0:00:23]} Rd6 {[%emt 0:04:27]} 40. Re2 {[%emt 0:00:39]} Re6 {[%emt 0:00:24]} 41. Ra7+ {[%emt 0:00:26]} Kf6 {[%emt 0:00:38]} 42. Ra8 {[%emt 0:00:37]} Ke7 {[%emt 0:01:38]} 43. Ra7+ {[%emt 0:00:06]} Kf6 {[%emt 0:00:04]} 44. Ra8 {[%emt 0:00:03]} Rc7 1/2-1/2

[Event "Torneo Interdepartamental 2019"]
[Site "Montevideo"]
[Date "2019.08.25"]
[Round "4.5"]
[White "Belistri, Ubaldo"]
[Black "Daneri, Martin"]
[Result "0-1"]
[ECO "E10"]
[WhiteElo "1849"]
[BlackElo "2050"]
[Annotator "NA"]
[PlyCount "54"]
[EventDate "2019.08.23"]
[EventType "team-tourn"]
[EventCountry "URU"]
[SourceTitle "playchess.com"]
[Source "ChessBase"]
[SourceQuality "1"]
[TimeControl "5400+30"]

1. d4 Nf6 {[%emt 0:07:25]} 2. c4 {[%emt 0:01:07]} e6 {[%emt 0:00:08]} 3. Nf3 {[%emt 0:00:42]} c5 {[%emt 0:00:10]} 4. Nc3 {[%emt 0:00:53]} cxd4 {[%emt 0:04:30]} 5. Nxd4 {[%emt 0:00:14]} b6 {[%emt 0:03:36]} 6. e4 {[%emt 0:04:18]} d6 {[%emt 0:05:10]} 7. Be2 {[%emt 0:02:51]} Bb7 {[%emt 0:01:19]} 8. Bf3 {[%emt 0:07:02]} Nbd7 {[%emt 0:01:11]} 9. O-O {[%emt 0:05:05]} a6 {[%emt 0:01:00]} 10. Re1 {[%emt 0:04:05]} Qc7 {[%emt 0:01:05]} 11. b3 {[%emt 0:15:24]} Be7 {[%emt 0:08:46]} 12. Bb2 {[%emt 0:00:22]} O-O {[%emt 0:00:11]} 13. Qd2 {[%emt 0:08:57]} h6 {[%emt 0:05:35]} 14. g3 {[%emt 0:00:43]} Rfe8 {[%emt 0:03:51]} 15. Rad1 {[%emt 0:01:04]} Rac8 {[%emt 0:04:11]} 16. Bg2 {[%emt 0:01:21]} Qb8 {[%emt 0:00:24]} 17. f4 {[%emt 0:08:33]} Qa8 {[%emt 0:05:52]} 18. f5 {[%emt 0:08:55]} Nc5 {[%emt 0:08:16]} 19. fxe6 {[%emt 0:04:45]} fxe6 {[%emt 0:00:21]} 20. Qe2 {[%emt 0:00:48]} Bf8 {[%emt 0:01:12]} 21. h4 {[%emt 0:06:13]} d5 {[%emt 0:02:03]} 22. cxd5 {[%emt 0:01:34]} exd5 {[%emt 0:00:09]} 23. e5 {[%emt 0:00:16]} Nfe4 {[%emt 0:01:16]} 24. Nxe4 {[%emt 0:01:51]} dxe4 {[%emt 0:01:49]} 25. Qg4 {[%emt 0:10:56]} Nd3 {[%emt 0:03:39]} 26. Nf5 {[%emt 0:01:22]} Kh7 {[%emt 0:01:59]} 27. e6 {[%emt 0:02:00]} Rc2 {[%emt 0:14:34]} 0-1

[Event "Torneo Interdepartamental 2019"]
[Site "Montevideo"]
[Date "2019.08.25"]
[Round "4.6"]
[White "Pinero, Ismael"]
[Black "Campora, Edgardo"]
[Result "1-0"]
[ECO "B06"]
[WhiteElo "1908"]
[BlackElo "1666"]
[Annotator "NA"]
[PlyCount "49"]
[EventDate "2019.08.23"]
[EventType "team-tourn"]
[EventCountry "URU"]
[SourceTitle "playchess.com"]
[Source "ChessBase"]
[SourceQuality "1"]
[TimeControl "5400+30"]

1. e4 {[%emt 0:07:48]} g6 {[%emt 0:01:08]} 2. d4 {[%emt 0:00:13]} Bg7 3. c4 {[%emt 0:04:42]} d6 {[%emt 0:00:25]} 4. Nc3 {[%emt 0:00:11]} e5 {[%emt 0:00:18]} 5. d5 {[%emt 0:03:04]} f5 {[%emt 0:00:43]} 6. Nf3 {[%emt 0:01:37]} Nf6 {[%emt 0:00:27]} 7. Bd3 {[%emt 0:00:53]} O-O {[%emt 0:00:52]} 8. h3 {[%emt 0:00:09]} fxe4 {[%emt 0:10:02]} 9. Nxe4 {[%emt 0:00:11]} Nxe4 {[%emt 0:00:04]} 10. Bxe4 {[%emt 0:00:03]} Nd7 {[%emt 0:00:09]} 11. Bg5 {[%emt 0:05:47]} Qe8 {[%emt 0:00:53]} 12. Nd2 {[%emt 0:01:24]} Qf7 {[%emt 0:09:39]} 13. O-O {[%emt 0:02:52]} Nf6 {[%emt 0:00:46]} 14. Bf3 {[%emt 0:10:53]} Bf5 {[%emt 0:21:03]} 15. Qe2 {[%emt 0:01:19]} h6 {[%emt 0:03:04]} 16. Bxf6 {[%emt 0:01:34]} Bxf6 {[%emt 0:06:56]} 17. Be4 {[%emt 0:00:53]} Bg5 {[%emt 0:01:10]} 18. Nf3 {[%emt 0:03:54]} Bf6 {[%emt 0:09:19]} 19. b4 {[%emt 0:04:15]} Qh7 {[%emt 0:05:48]} 20. Rfe1 {[%emt 0:02:48]} g5 {[%emt 0:01:06]} 21. Nh2 {[%emt 0:00:56]} Rf7 {[%emt 0:02:36]} 22. a4 {[%emt 0:01:23]} Raf8 {[%emt 0:00:07]} 23. Ra3 {[%emt 0:01:34]} Bd8 {[%emt 0:01:03]} 24. Rf3 {[%emt 0:00:30]} Rg7 {[%emt 0:10:20]} 25. Rxf5 1-0

[Event "Torneo Interdepartamental 2019"]
[Site "Montevideo"]
[Date "2019.08.25"]
[Round "4.7"]
[White "Vaz Lacuesta, Leonardo"]
[Black "Carbone, Diego"]
[Result "1/2-1/2"]
[ECO "A45"]
[WhiteElo "2098"]
[BlackElo "2237"]
[Annotator "NA"]
[PlyCount "182"]
[EventDate "2019.08.23"]
[EventType "team-tourn"]
[EventCountry "URU"]
[SourceTitle "playchess.com"]
[Source "ChessBase"]
[SourceQuality "1"]
[TimeControl "5400+30"]

1. d4 {[%emt 0:09:58]} Nf6 {[%emt 0:00:14]} 2. Bf4 {[%emt 0:01:23]} g6 {[%emt 0:00:07]} 3. h3 {[%emt 0:00:15]} Bg7 {[%emt 0:00:31]} 4. Nf3 {[%emt 0:00:30]} O-O {[%emt 0:03:02]} 5. e3 {[%emt 0:01:18]} d6 {[%emt 0:00:56]} 6. Be2 {[%emt 0:00:06]} c5 {[%emt 0:00:09]} 7. c3 {[%emt 0:04:10]} Qb6 {[%emt 0:00:09]} 8. Qb3 {[%emt 0:06:44]} Be6 {[%emt 0:01:36]} 9. Qxb6 {[%emt 0:00:49]} axb6 {[%emt 0:00:03]} 10. a3 {[%emt 0:00:06]} Bd7 {[%emt 0:05:58]} 11. O-O {[%emt 0:12:56]} Bc6 {[%emt 0:00:18]} 12. Nbd2 {[%emt 0:03:42]} Nbd7 {[%emt 0:01:59]} 13. c4 {[%emt 0:08:04]} d5 {[%emt 0:10:01]} 14. Ne5 {[%emt 0:13:38]} Rfd8 {[%emt 0:07:13]} 15. Nxc6 {[%emt 0:01:06]} bxc6 {[%emt 0:00:03]} 16. dxc5 {[%emt 0:00:28]} bxc5 {[%emt 0:05:03]} 17. Rac1 {[%emt 0:04:15]} e5 {[%emt 0:30:34]} 18. Bh2 {[%emt 0:01:25]} e4 {[%emt 0:08:13]} 19. cxd5 {[%emt 0:03:25]} cxd5 {[%emt 0:01:25]} 20. Bb5 {[%emt 0:00:07]} c4 {[%emt 0:02:54]} 21. Bc7 {[%emt 0:02:17]} Rdc8 {[%emt 0:01:59]} 22. Bd6 {[%emt 0:03:30]} Nc5 {[%emt 0:03:53]} 23. Bxc5 {[%emt 0:06:02]} Rxc5 {[%emt 0:00:02]} 24. a4 {[%emt 0:00:05]} Ne8 {[%emt 0:00:44]} 25. Rc2 {[%emt 0:07:49]} Nd6 {[%emt 0:01:29]} 26. b3 {[%emt 0:04:55]} Nxb5 {[%emt 0:01:25]} 27. axb5 {[%emt 0:00:06]} c3 {[%emt 0:00:14]} 28. Nb1 {[%emt 0:00:04]} Rxb5 {[%emt 0:00:17]} 29. Nxc3 {[%emt 0:01:59]} Rc5 {[%emt 0:04:38]} 30. Ra2 {[%emt 0:00:07]} Rb8 {[%emt 0:02:43]} 31. Na4 {[%emt 0:00:32]} Ra5 {[%emt 0:00:14]} 32. Rb1 {[%emt 0:02:32]} h5 {[%emt 0:04:04]} 33. Kf1 {[%emt 0:00:48]} h4 {[%emt 0:00:22]} 34. Ke2 {[%emt 0:00:33]} Be5 {[%emt 0:00:17]} 35. Kd1 {[%emt 0:00:24]} d4 {[%emt 0:00:44]} 36. exd4 {[%emt 0:00:47]} Bxd4 {[%emt 0:00:01]} 37. Ke2 {[%emt 0:00:12]} Rf5 {[%emt 0:00:50]} 38. Kf1 {[%emt 0:00:42]} Ra5 {[%emt 0:01:41]} 39. Rd1 {[%emt 0:00:48]} Be5 {[%emt 0:01:06]} 40. Re2 {[%emt 0:00:13]} f5 {[%emt 0:00:20]} 41. Nb2 {[%emt 0:00:35]} Rxb3 {[%emt 0:01:39]} 42. Nc4 {[%emt 0:00:07]} Ra1 {[%emt 0:00:27]} 43. Red2 {[%emt 0:01:09]} Rxd1+ {[%emt 0:01:21]} 44. Rxd1 {[%emt 0:00:05]} Bf4 {[%emt 0:00:11]} 45. Rd7 {[%emt 0:01:02]} Rb4 {[%emt 0:00:40]} 46. Na5 {[%emt 0:00:18]} Rb1+ {[%emt 0:00:12]} 47. Ke2 {[%emt 0:00:08]} Rb2+ {[%emt 0:00:15]} 48. Ke1 {[%emt 0:00:30]} Rc2 {[%emt 0:00:58]} 49. Nb3 {[%emt 0:00:47]} e3 {[%emt 0:00:30]} 50. fxe3 {[%emt 0:00:45]} Bg3+ {[%emt 0:00:02]} 51. Kf1 {[%emt 0:00:25]} Rf2+ {[%emt 0:00:22]} 52. Kg1 {[%emt 0:00:20]} Re2 {[%emt 0:01:10]} 53. Nd2 {[%emt 0:00:36]} Rxe3 {[%emt 0:00:32]} 54. Nf3 {[%emt 0:00:19]} Ra3 {[%emt 0:00:37]} 55. Kf1 {[%emt 0:00:25]} Ra1+ {[%emt 0:00:27]} 56. Ke2 {[%emt 0:00:08]} Kf8 {[%emt 0:00:33]} 57. Rb7 {[%emt 0:00:47]} Ra2+ {[%emt 0:00:08]} 58. Kf1 {[%emt 0:00:34]} Rf2+ {[%emt 0:00:30]} 59. Kg1 {[%emt 0:00:13]} Rc2 {[%emt 0:00:42]} 60. Kf1 {[%emt 0:00:08]} Rc4 {[%emt 0:00:37]} 61. Ke2 {[%emt 0:00:47]} Re4+ {[%emt 0:00:23]} 62. Kd3 {[%emt 0:00:22]} Re7 {[%emt 0:00:39]} 63. Rb4 {[%emt 0:01:03]} Rd7+ {[%emt 0:00:32]} 64. Ke2 {[%emt 0:00:10]} Re7+ {[%emt 0:00:03]} 65. Kd3 {[%emt 0:00:06]} f4 {[%emt 0:00:56]} 66. Nxh4 {[%emt 0:01:11]} Re3+ {[%emt 0:00:22]} 67. Kc2 {[%emt 0:00:09]} g5 {[%emt 0:00:39]} 68. Nf3 {[%emt 0:00:50]} Re2+ {[%emt 0:00:07]} 69. Kb3 {[%emt 0:00:06]} Rxg2 {[%emt 0:00:39]} 70. Nxg5 {[%emt 0:00:15]} Rf2 {[%emt 0:00:23]} 71. Rb7 {[%emt 0:01:18]} Re2 {[%emt 0:00:40]} 72. Kc4 {[%emt 0:00:33]} Bh4 {[%emt 0:00:39]} 73. Nf3 {[%emt 0:00:44]} Bf6 {[%emt 0:00:03]} 74. h4 {[%emt 0:00:28]} Re3 {[%emt 0:00:21]} 75. Rb3 {[%emt 0:00:39]} Rxb3 {[%emt 0:01:07]} 76. Kxb3 {[%emt 0:00:04]} Ke7 {[%emt 0:00:30]} 77. Kc4 {[%emt 0:00:08]} Ke6 {[%emt 0:00:04]} 78. Kd3 {[%emt 0:00:32]} Kf5 {[%emt 0:00:05]} 79. h5 {[%emt 0:00:58]} Bg7 {[%emt 0:00:18]} 80. Nh4+ {[%emt 0:00:14]} Kg4 {[%emt 0:00:53]} 81. Ke4 {[%emt 0:00:16]} Bf6 {[%emt 0:00:51]} 82. Nf3 {[%emt 0:00:33]} Bg7 {[%emt 0:00:43]} 83. Nh4 {[%emt 0:00:20]} Bh6 {[%emt 0:00:37]} 84. Nf3 {[%emt 0:00:48]} Kxh5 {[%emt 0:00:24]} 85. Ne5 {[%emt 0:00:11]} Bg5 {[%emt 0:00:30]} 86. Nf3 {[%emt 0:00:18]} Kg4 {[%emt 0:00:08]} 87. Ne5+ {[%emt 0:00:52]} Kg3 {[%emt 0:00:08]} 88. Nf3 {[%emt 0:00:11]} Bf6 {[%emt 0:00:02]} 89. Ne1 {[%emt 0:00:43]} Bc3 {[%emt 0:00:55]} 90. Nf3 {[%emt 0:00:05]} Kg4 {[%emt 0:00:16]} 91. Nh2+ {[%emt 0:00:04]} Kg3 {[%emt 0:00:05]} 1/2-1/2

[Event "Torneo Interdepartamental 2019"]
[Site "Montevideo"]
[Date "2019.08.25"]
[Round "4.8"]
[White "Vazquez, Facundo"]
[Black "Dominguez, Facundo"]
[Result "1-0"]
[ECO "E11"]
[WhiteElo "2111"]
[BlackElo "2138"]
[Annotator "NA"]
[PlyCount "101"]
[EventDate "2019.08.23"]
[EventType "team-tourn"]
[EventCountry "URU"]
[SourceTitle "playchess.com"]
[Source "ChessBase"]
[SourceQuality "1"]
[TimeControl "5400+30"]

1. d4 {[%emt 0:00:00]} Nf6 {[%emt 0:02:02]} 2. c4 {[%emt 0:00:00]} e6 {[%emt 0:01:20]} 3. Nf3 {[%emt 0:00:02]} Bb4+ {[%emt 0:02:24]} 4. Bd2 {[%emt 0:00:10]} Be7 {[%emt 0:02:25]} 5. Nc3 {[%emt 0:01:43]} d5 {[%emt 0:02:12]} 6. cxd5 {[%emt 0:02:30]} exd5 {[%emt 0:00:17]} 7. Bg5 {[%emt 0:00:03]} O-O {[%emt 0:02:14]} 8. Qc2 {[%emt 0:01:23]} c6 {[%emt 0:02:08]} 9. e3 {[%emt 0:00:09]} Be6 {[%emt 0:09:54]} 10. Bd3 {[%emt 0:03:51]} Nbd7 {[%emt 0:00:40]} 11. O-O {[%emt 0:00:49]} h6 {[%emt 0:03:01]} 12. Bh4 {[%emt 0:05:58]} Rc8 {[%emt 0:05:17]} 13. Rfe1 {[%emt 0:12:56]} c5 {[%emt 0:07:58]} 14. Bf5 {[%emt 0:03:58]} Qb6 {[%emt 0:06:22]} 15. Rab1 {[%emt 0:03:38]} Rfe8 {[%emt 0:07:31]} 16. Na4 {[%emt 0:08:36]} Bxf5 {[%emt 0:04:36]} 17. Qxf5 {[%emt 0:00:56]} Qe6 {[%emt 0:00:49]} 18. Qxe6 {[%emt 0:02:42]} fxe6 {[%emt 0:00:07]} 19. dxc5 {[%emt 0:02:04]} Nxc5 {[%emt 0:00:50]} 20. Nxc5 {[%emt 0:01:42]} Rxc5 {[%emt 0:01:14]} 21. Nd4 {[%emt 0:02:30]} Kf7 {[%emt 0:01:09]} 22. Nb3 {[%emt 0:02:15]} Rc2 {[%emt 0:02:58]} 23. Nd4 {[%emt 0:00:49]} Rc4 {[%emt 0:01:27]} 24. Bg3 {[%emt 0:06:42]} Rec8 {[%emt 0:09:50]} 25. f3 {[%emt 0:12:59]} Nd7 {[%emt 0:06:16]} 26. Red1 {[%emt 0:01:53]} Bc5 {[%emt 0:03:27]} 27. Bf2 {[%emt 0:03:49]} Bxd4 {[%emt 0:01:10]} 28. exd4 {[%emt 0:00:02]} Rc2 {[%emt 0:01:18]} 29. Be3 {[%emt 0:10:39]} Re2 {[%emt 0:01:56]} 30. Rbc1 {[%emt 0:01:36]} Rxc1 {[%emt 0:00:18]} 31. Bxc1 {[%emt 0:00:02]} Nb6 {[%emt 0:02:36]} 32. a3 {[%emt 0:02:07]} Na4 {[%emt 0:00:56]} 33. Bf4 {[%emt 0:03:41]} Nxb2 {[%emt 0:01:52]} 34. Rb1 {[%emt 0:00:03]} b6 {[%emt 0:00:14]} 35. Bb8 {[%emt 0:02:38]} a6 {[%emt 0:00:38]} 36. Ba7 {[%emt 0:00:51]} b5 {[%emt 0:00:32]} 37. Bc5 {[%emt 0:00:14]} Rc2 {[%emt 0:02:23]} 38. h4 {[%emt 0:00:47]} Nc4 {[%emt 0:03:51]} 39. a4 {[%emt 0:00:53]} bxa4 {[%emt 0:00:35]} 40. Ra1 {[%emt 0:00:40]} Nb2 {[%emt 0:00:16]} 41. Ba3 {[%emt 0:00:39]} Nd3 {[%emt 0:01:00]} 42. Rb1 {[%emt 0:01:10]} Nf4 {[%emt 0:00:43]} 43. Rb7+ {[%emt 0:00:13]} Kf6 {[%emt 0:01:28]} 44. Be7+ {[%emt 0:00:19]} Kg6 {[%emt 0:01:01]} 45. g4 {[%emt 0:00:01]} Ne2+ {[%emt 0:00:33]} 46. Kf1 {[%emt 0:00:01]} Nxd4 {[%emt 0:00:31]} 47. h5+ {[%emt 0:00:17]} Kh7 {[%emt 0:00:16]} 48. Bf6 {[%emt 0:00:10]} Rc1+ {[%emt 0:00:37]} 49. Kf2 {[%emt 0:00:27]} Rc4 {[%emt 0:00:45]} 50. Rxg7+ {[%emt 0:00:12]} Kh8 {[%emt 0:00:02]} 51. Rc7+ {[%emt 0:00:41]} 1-0

[Event "Torneo Interdepartamental 2019"]
[Site "Montevideo"]
[Date "2019.08.25"]
[Round "4.9"]
[White "Caitano, Martin Joel"]
[Black "Suarez, Pedro"]
[Result "1/2-1/2"]
[ECO "E12"]
[WhiteElo "2119"]
[BlackElo "2040"]
[Annotator "NA"]
[PlyCount "76"]
[EventDate "2019.08.23"]
[EventType "team-tourn"]
[EventCountry "URU"]
[SourceTitle "playchess.com"]
[Source "ChessBase"]
[SourceQuality "1"]
[TimeControl "5400+30"]

1. d4 {[%emt 0:01:56]} Nf6 {[%emt 0:00:00]} 2. c4 {[%emt 0:00:09]} e6 {[%emt 0:00:39]} 3. Nf3 {[%emt 0:00:10]} b6 {[%emt 0:00:34]} 4. Bg5 {[%emt 0:03:53]} Bb7 {[%emt 0:03:50]} 5. e3 {[%emt 0:04:14]} h6 {[%emt 0:00:41]} 6. Bh4 {[%emt 0:02:40]} d6 {[%emt 0:05:57]} 7. Nc3 {[%emt 0:00:43]} Be7 {[%emt 0:03:17]} 8. Be2 {[%emt 0:02:54]} O-O {[%emt 0:04:04]} 9. O-O {[%emt 0:01:44]} Ne4 {[%emt 0:04:18]} 10. Bxe7 {[%emt 0:01:02]} Qxe7 {[%emt 0:00:07]} 11. Nxe4 {[%emt 0:01:41]} Bxe4 {[%emt 0:00:06]} 12. Nd2 {[%emt 0:00:38]} Bb7 {[%emt 0:01:41]} 13. Bf3 {[%emt 0:03:47]} Bxf3 {[%emt 0:03:34]} 14. Qxf3 {[%emt 0:00:38]} Nd7 {[%emt 0:00:13]} 15. Qc6 {[%emt 0:02:58]} Nf6 {[%emt 0:10:24]} 16. f4 {[%emt 0:03:10]} Qd7 {[%emt 0:02:07]} 17. Qf3 {[%emt 0:04:26]} Rfe8 {[%emt 0:19:04]} 18. g4 {[%emt 0:16:38]} e5 {[%emt 0:04:42]} 19. g5 {[%emt 0:10:56]} hxg5 {[%emt 0:01:46]} 20. fxg5 {[%emt 0:02:09]} Qg4+ {[%emt 0:00:58]} 21. Kh1 {[%emt 0:09:00]} Qxf3+ {[%emt 0:00:04]} 22. Nxf3 {[%emt 0:10:28]} Ng4 {[%emt 0:07:30]} 23. Rfe1 {[%emt 0:01:39]} exd4 {[%emt 0:00:34]} 24. exd4 {[%emt 0:00:16]} Nf2+ {[%emt 0:00:21]} 25. Kg1 {[%emt 0:03:48]} Nd3 {[%emt 0:00:07]} 26. Rxe8+ {[%emt 0:04:17]} Rxe8 {[%emt 0:00:01]} 27. b3 {[%emt 0:03:43]} Re2 {[%emt 0:02:02]} 28. d5 {[%emt 0:01:14]} Ne5 {[%emt 0:02:36]} 29. Nd4 {[%emt 0:00:32]} Rd2 {[%emt 0:00:11]} 30. Nb5 {[%emt 0:01:58]} Nf3+ {[%emt 0:00:05]} 31. Kf1 {[%emt 0:00:11]} Rxh2 {[%emt 0:00:15]} 32. Rd1 {[%emt 0:01:10]} Rxa2 {[%emt 0:05:43]} 33. Nxc7 {[%emt 0:00:14]} Kf8 {[%emt 0:02:08]} 34. Rd3 {[%emt 0:01:02]} Ne5 {[%emt 0:02:52]} 35. Rh3 {[%emt 0:00:48]} Ng6 {[%emt 0:00:39]} 36. Re3 {[%emt 0:00:23]} Ne5 {[%emt 0:00:04]} 37. Rh3 {[%emt 0:00:04]} Ke7 38. Rh8 Nf3 1/2-1/2

[Event "Torneo Interdepartamental 2019"]
[Site "Montevideo"]
[Date "2019.08.25"]
[Round "4.10"]
[White "Barboza, Mauro"]
[Black "Campopiano, Julio"]
[Result "1/2-1/2"]
[ECO "B07"]
[WhiteElo "1925"]
[BlackElo "1791"]
[Annotator "NA"]
[PlyCount "41"]
[EventDate "2019.08.23"]
[EventType "team-tourn"]
[EventCountry "URU"]
[SourceTitle "playchess.com"]
[Source "ChessBase"]
[SourceQuality "1"]
[TimeControl "5400+30"]

1. e4 {[%emt 0:01:12]} d6 {[%emt 0:01:39]} 2. d4 {[%emt 0:00:14]} Nf6 {[%emt 0:00:25]} 3. Nc3 {[%emt 0:00:13]} g6 {[%emt 0:00:06]} 4. Bc4 {[%emt 0:00:31]} Bg7 {[%emt 0:02:09]} 5. Bb3 {[%emt 0:01:12]} O-O {[%emt 0:05:23]} 6. Bg5 {[%emt 0:00:30]} h6 {[%emt 0:01:32]} 7. Bh4 {[%emt 0:02:50]} c6 {[%emt 0:03:08]} 8. Nf3 {[%emt 0:00:13]} Qc7 {[%emt 0:09:44]} 9. O-O {[%emt 0:00:15]} e5 {[%emt 0:04:10]} 10. dxe5 {[%emt 0:10:30]} dxe5 {[%emt 0:00:26]} 11. Qe2 {[%emt 0:00:10]} Nbd7 {[%emt 0:04:48]} 12. Qe3 {[%emt 0:03:39]} b6 {[%emt 0:05:45]} 13. Rad1 {[%emt 0:04:54]} Ba6 {[%emt 0:02:34]} 14. Rfe1 {[%emt 0:01:10]} Kh7 {[%emt 0:00:42]} 15. Qd2 Rae8 {[%emt 0:13:28]} 16. Qd6 {[%emt 0:05:25]} Qxd6 {[%emt 0:04:01]} 17. Rxd6 {[%emt 0:00:45]} g5 {[%emt 0:01:17]} 18. Bg3 {[%emt 0:02:57]} Bb7 {[%emt 0:01:47]} 19. Red1 {[%emt 0:00:34]} Re7 {[%emt 0:00:51]} 20. h3 {[%emt 0:16:46]} Kg8 {[%emt 0:06:20]} 21. a3 1/2-1/2